[Event "*** SCC Grand Prix: Titled Tuesday Blitz"]
[Site "Chess.com"]
[Date "2020.06.09"]
[Round "1"]
[White "yamalchess"]
[Black "LiemLe"]
[Result "0-1"]
[WhiteElo "2449"]
[BlackElo "2910"]
[TimeControl "180+1"]
[EndTime "9:07:20 PDT"]
[Termination "LiemLe won by checkmate"]

1. d4 {[%clk 0:02:55.3]} 1... f5 {[%clk 0:02:59]} 2. Nc3 {[%clk 0:02:53.2]} 2...
Nf6 {[%clk 0:02:58.8]} 3. Bg5 {[%clk 0:02:53.1]} 3... d5 {[%clk 0:02:59]} 4.
Bxf6 {[%clk 0:02:52.7]} 4... exf6 {[%clk 0:02:59.9]} 5. e3 {[%clk 0:02:53.2]}
5... Be6 {[%clk 0:03:00.1]} 6. Bd3 {[%clk 0:02:53.2]} 6... Nc6 {[%clk
0:02:58.5]} 7. h3 {[%clk 0:02:53.3]} 7... Qd7 {[%clk 0:02:56.7]} 8. Nge2 {[%clk
0:02:52.3]} 8... g6 {[%clk 0:02:55]} 9. Nf4 {[%clk 0:02:50.4]} 9... Bf7 {[%clk
0:02:53.5]} 10. g4 {[%clk 0:02:38]} 10... fxg4 {[%clk 0:02:29.9]} 11. hxg4
{[%clk 0:02:35.6]} 11... Bg7 {[%clk 0:02:24.8]} 12. Qf3 {[%clk 0:02:33.4]} 12...
Nb4 {[%clk 0:02:24.3]} 13. O-O-O {[%clk 0:02:11.7]} 13... Nxd3+ {[%clk
0:02:24.2]} 14. Nxd3 {[%clk 0:02:05.8]} 14... O-O-O {[%clk 0:02:22.9]} 15. Nc5
{[%clk 0:01:49.9]} 15... Qe7 {[%clk 0:02:18.3]} 16. Qe2 {[%clk 0:01:46.8]} 16...
Kb8 {[%clk 0:02:14.6]} 17. Qb5 {[%clk 0:01:45.5]} 17... c6 {[%clk 0:02:14.3]}
18. Qb3 {[%clk 0:01:36.5]} 18... g5 {[%clk 0:01:59.6]} 19. a4 {[%clk 0:01:34.9]}
19... h5 {[%clk 0:01:51.5]} 20. gxh5 {[%clk 0:01:31.7]} 20... Bxh5 {[%clk
0:01:52.4]} 21. Rdg1 {[%clk 0:01:28.7]} 21... Bf3 {[%clk 0:01:50.5]} 22. Rxh8
{[%clk 0:01:27.9]} 22... Rxh8 {[%clk 0:01:51.4]} 23. a5 {[%clk 0:01:28]} 23...
Bf8 {[%clk 0:01:33.9]} 24. N3a4 {[%clk 0:01:21.9]} 24... Ka8 {[%clk 0:01:25.2]}
25. Kb1 {[%clk 0:01:19.4]} 25... Qf7 {[%clk 0:01:17]} 26. Nb6+ {[%clk 0:01:12]}
26... axb6 {[%clk 0:01:13.9]} 27. axb6 {[%clk 0:01:11.4]} 27... Bxc5 {[%clk
0:01:08]} 28. Qa4+ {[%clk 0:01:10.3]} 28... Kb8 {[%clk 0:01:08.1]} 29. dxc5
{[%clk 0:00:58.7]} 29... Qe8 {[%clk 0:00:51.2]} 30. Qa7+ {[%clk 0:00:56.1]}
30... Kc8 {[%clk 0:00:51.6]} 31. Qa8+ {[%clk 0:00:56.2]} 31... Kd7 {[%clk
0:00:52.1]} 32. Qxb7+ {[%clk 0:00:56.3]} 32... Ke6 {[%clk 0:00:52.6]} 33. Qc7
{[%clk 0:00:37.8]} 33... Qd7 {[%clk 0:00:46.1]} 34. Qg3 {[%clk 0:00:37]} 34...
g4 {[%clk 0:00:41.2]} 35. Qf4 {[%clk 0:00:36.6]} 35... Kf7 {[%clk 0:00:36.4]}
36. Kc1 {[%clk 0:00:33.7]} 36... Qe7 {[%clk 0:00:26.6]} 37. b4 {[%clk
0:00:24.5]} 37... Ra8 {[%clk 0:00:18.4]} 38. Kd2 {[%clk 0:00:20.5]} 38... Ra2
{[%clk 0:00:18.3]} 39. Qh6 {[%clk 0:00:19.8]} 39... Qe4 {[%clk 0:00:17.8]} 40.
Rc1 {[%clk 0:00:17.4]} 40... Qxb4+ {[%clk 0:00:16.9]} 41. Kd3 {[%clk 0:00:13.8]}
41... Ra3+ {[%clk 0:00:17.1]} 42. c3 {[%clk 0:00:12.5]} 42... Qc4+ {[%clk
0:00:17.4]} 43. Kd2 {[%clk 0:00:12.1]} 43... Qe2# {[%clk 0:00:16.3]} 0-1

[Event "*** SCC Grand Prix: Titled Tuesday Blitz"]
[Site "Chess.com"]
[Date "2020.06.09"]
[Round "1"]
[White "AtabayevSaparmyrat"]
[Black "MFBerna"]
[Result "1-0"]
[WhiteElo "2793"]
[BlackElo "2421"]
[TimeControl "180+1"]
[EndTime "9:07:20 PDT"]
[Termination "AtabayevSaparmyrat won on time"]

1. e4 {[%clk 0:02:57.8]} 1... c5 {[%clk 0:02:58.8]} 2. Nf3 {[%clk 0:02:56.3]}
2... d6 {[%clk 0:02:55.2]} 3. d4 {[%clk 0:02:55.9]} 3... cxd4 {[%clk 0:02:56.1]}
4. Nxd4 {[%clk 0:02:55.6]} 4... Nf6 {[%clk 0:02:56.3]} 5. Nc3 {[%clk 0:02:55.5]}
5... Nc6 {[%clk 0:02:55.7]} 6. Bg5 {[%clk 0:02:54.8]} 6... e6 {[%clk 0:02:55.3]}
7. Qd2 {[%clk 0:02:54.7]} 7... Be7 {[%clk 0:02:54.8]} 8. O-O-O {[%clk 0:02:54]}
8... O-O {[%clk 0:02:52.6]} 9. f4 {[%clk 0:02:53.4]} 9... a6 {[%clk 0:02:47.4]}
10. Nf3 {[%clk 0:02:51.5]} 10... b5 {[%clk 0:02:38.7]} 11. e5 {[%clk 0:02:36.8]}
11... dxe5 {[%clk 0:02:22.3]} 12. Nxe5 {[%clk 0:02:36.4]} 12... Qxd2+ {[%clk
0:02:20.8]} 13. Rxd2 {[%clk 0:02:37.3]} 13... Bb7 {[%clk 0:02:20]} 14. Bd3
{[%clk 0:02:18.7]} 14... Rac8 {[%clk 0:01:46.4]} 15. Rhd1 {[%clk 0:02:06.7]}
15... Rc7 {[%clk 0:01:41.7]} 16. Nxc6 {[%clk 0:01:49.3]} 16... Bxc6 {[%clk
0:01:42.6]} 17. g3 {[%clk 0:01:49.5]} 17... Rfc8 {[%clk 0:01:41.6]} 18. a3
{[%clk 0:01:25.4]} 18... Bf3 {[%clk 0:01:37.9]} 19. Rf1 {[%clk 0:01:21.8]} 19...
Bb7 {[%clk 0:01:37.4]} 20. Bxf6 {[%clk 0:01:11.8]} 20... Bxf6 {[%clk 0:01:37.4]}
21. Ne4 {[%clk 0:01:12.7]} 21... Be7 {[%clk 0:01:34.4]} 22. Rfd1 {[%clk
0:01:07]} 22... g6 {[%clk 0:01:22.6]} 23. Kb1 {[%clk 0:01:06.2]} 23... Kg7
{[%clk 0:01:21]} 24. Nf2 {[%clk 0:01:05.1]} 24... Bf3 {[%clk 0:01:11.3]} 25. Re1
{[%clk 0:01:00.6]} 25... b4 {[%clk 0:00:52.3]} 26. a4 {[%clk 0:00:57.7]} 26...
a5 {[%clk 0:00:37]} 27. Be4 {[%clk 0:00:57]} 27... Bxe4 {[%clk 0:00:32.9]} 28.
Nxe4 {[%clk 0:00:57.9]} 28... b3 {[%clk 0:00:18.8]} 29. Ree2 {[%clk 0:00:49.3]}
29... bxc2+ {[%clk 0:00:13.8]} 30. Rxc2 {[%clk 0:00:49.2]} 30... Bb4 {[%clk
0:00:07.6]} 31. Rxc7 {[%clk 0:00:45.7]} 31... Rxc7 {[%clk 0:00:08.5]} 32. Ng5
{[%clk 0:00:43.6]} 32... Rd7 {[%clk 0:00:07.2]} 33. Kc2 {[%clk 0:00:43.1]} 33...
Rc7+ {[%clk 0:00:04.8]} 34. Kb3 {[%clk 0:00:43.5]} 34... Rc1 {[%clk 0:00:05.1]}
35. Nf3 {[%clk 0:00:41]} 35... Rd1 {[%clk 0:00:05.1]} 36. Ne5 {[%clk 0:00:40.7]}
36... f6 {[%clk 0:00:03.9]} 37. Nc6 {[%clk 0:00:40.9]} 1-0

[Event "*** SCC Grand Prix: Titled Tuesday Blitz"]
[Site "Chess.com"]
[Date "2020.06.09"]
[Round "1"]
[White "Raja3401"]
[Black "Nafania1"]
[Result "1-0"]
[WhiteElo "2826"]
[BlackElo "2430"]
[TimeControl "180+1"]
[EndTime "9:07:21 PDT"]
[Termination "Raja3401 won by checkmate"]

1. e4 {[%clk 0:03:00.9]} 1... e6 {[%clk 0:02:58.3]} 2. d4 {[%clk 0:03:00.6]}
2... d5 {[%clk 0:02:58.1]} 3. Nd2 {[%clk 0:03:00.9]} 3... Be7 {[%clk 0:02:57.5]}
4. Ngf3 {[%clk 0:03:00.1]} 4... Nf6 {[%clk 0:02:57]} 5. Bd3 {[%clk 0:02:59.2]}
5... c5 {[%clk 0:02:52.7]} 6. e5 {[%clk 0:02:58.6]} 6... Nfd7 {[%clk 0:02:52.6]}
7. c3 {[%clk 0:02:58.9]} 7... Nc6 {[%clk 0:02:52.8]} 8. O-O {[%clk 0:02:59.2]}
8... a5 {[%clk 0:02:52.9]} 9. a4 {[%clk 0:02:51.6]} 9... cxd4 {[%clk 0:02:52.6]}
10. cxd4 {[%clk 0:02:51.8]} 10... Nb4 {[%clk 0:02:52.8]} 11. Bb5 {[%clk
0:02:43.7]} 11... O-O {[%clk 0:02:52.4]} 12. Nb1 {[%clk 0:02:37.3]} 12... Nb8
{[%clk 0:02:52.2]} 13. Nc3 {[%clk 0:02:35.2]} 13... N8c6 {[%clk 0:02:52.2]} 14.
Re1 {[%clk 0:02:28.1]} 14... f5 {[%clk 0:02:49.3]} 15. exf6 {[%clk 0:02:24.8]}
15... Bxf6 {[%clk 0:02:49.6]} 16. Be3 {[%clk 0:02:01.9]} 16... Bd7 {[%clk
0:02:23.3]} 17. Bf4 {[%clk 0:01:50.5]} 17... Bxd4 {[%clk 0:02:01.1]} 18. Nxd4
{[%clk 0:01:37.1]} 18... Rxf4 {[%clk 0:02:00.2]} 19. Nxe6 {[%clk 0:01:35.4]}
19... Bxe6 {[%clk 0:02:00.4]} 20. Rxe6 {[%clk 0:01:36.2]} 20... Qb6 {[%clk
0:01:56.5]} 21. Nxd5 {[%clk 0:00:50.5]} 21... Qxf2+ {[%clk 0:01:38.6]} 22. Kh1
{[%clk 0:00:50.3]} 22... Rd8 {[%clk 0:00:46.7]} 23. Qh5 {[%clk 0:00:09.9]} 23...
g6 {[%clk 0:00:40.7]} 24. Rxg6+ {[%clk 0:00:06.9]} 24... hxg6 {[%clk 0:00:39.9]}
25. Qxg6+ {[%clk 0:00:07.8]} 25... Kh8 {[%clk 0:00:38.8]} 26. Qh6+ {[%clk
0:00:08.1]} 26... Kg8 {[%clk 0:00:38]} 27. Nxf4 {[%clk 0:00:08.5]} 27... Ne5
{[%clk 0:00:28.4]} 28. Qg5+ {[%clk 0:00:07.7]} 28... Kh7 {[%clk 0:00:26.4]} 29.
Qxe5 {[%clk 0:00:07.1]} 29... Rd2 {[%clk 0:00:21.9]} 30. Qh5+ {[%clk 0:00:06.8]}
30... Kg7 {[%clk 0:00:21]} 31. Qg5+ {[%clk 0:00:06.9]} 31... Kh7 {[%clk
0:00:20.5]} 32. Rg1 {[%clk 0:00:05.4]} 32... Nc2 {[%clk 0:00:19.6]} 33. Bd3+
{[%clk 0:00:04.1]} 33... Rxd3 {[%clk 0:00:19.9]} 34. Nxd3 {[%clk 0:00:04.7]}
34... Qe2 {[%clk 0:00:19]} 35. Qh4+ {[%clk 0:00:04.5]} 35... Kg7 {[%clk
0:00:18.5]} 36. Nf4 {[%clk 0:00:04.9]} 36... Qd2 {[%clk 0:00:16.8]} 37. Qg3+
{[%clk 0:00:05.5]} 37... Kh7 {[%clk 0:00:16]} 38. Nh5 {[%clk 0:00:05.7]} 38...
Ne3 {[%clk 0:00:14.5]} 39. Qg7# {[%clk 0:00:05.5]} 1-0

[Event "*** SCC Grand Prix: Titled Tuesday Blitz"]
[Site "Chess.com"]
[Date "2020.06.09"]
[Round "1"]
[White "goldenpuppy"]
[Black "sonicdravise"]
[Result "0-1"]
[WhiteElo "2203"]
[BlackElo "2564"]
[TimeControl "180+1"]
[EndTime "9:07:21 PDT"]
[Termination "sonicdravise won by resignation"]

1. e4 {[%clk 0:03:00.8]} 1... g6 {[%clk 0:02:58.5]} 2. d4 {[%clk 0:03:00.6]}
2... Bg7 {[%clk 0:02:59]} 3. Nc3 {[%clk 0:03:01]} 3... a6 {[%clk 0:02:59.4]} 4.
Nf3 {[%clk 0:03:00.7]} 4... d6 {[%clk 0:02:59.1]} 5. a4 {[%clk 0:03:00.2]} 5...
b6 {[%clk 0:02:58.9]} 6. Be3 {[%clk 0:02:59.9]} 6... Bb7 {[%clk 0:02:58.8]} 7.
Bd3 {[%clk 0:03:00.4]} 7... e6 {[%clk 0:02:58.6]} 8. h3 {[%clk 0:03:00.3]} 8...
Ne7 {[%clk 0:02:58.7]} 9. g4 {[%clk 0:03:00.4]} 9... Nd7 {[%clk 0:02:58.2]} 10.
Qe2 {[%clk 0:02:59.8]} 10... c5 {[%clk 0:02:57.3]} 11. d5 {[%clk 0:02:48.5]}
11... exd5 {[%clk 0:02:53.8]} 12. exd5 {[%clk 0:02:48.5]} 12... O-O {[%clk
0:02:53.8]} 13. Bc4 {[%clk 0:02:47]} 13... Re8 {[%clk 0:02:49.7]} 14. Kf1 {[%clk
0:02:43.6]} 14... Ne5 {[%clk 0:02:46.2]} 15. Nxe5 {[%clk 0:02:42.1]} 15... Bxe5
{[%clk 0:02:46.4]} 16. Rd1 {[%clk 0:02:41.2]} 16... f5 {[%clk 0:02:43.4]} 17.
Qf3 {[%clk 0:02:32.9]} 17... Rf8 {[%clk 0:02:40.5]} 18. g5 {[%clk 0:02:31.1]}
18... f4 {[%clk 0:02:39]} 19. Bc1 {[%clk 0:02:30.4]} 19... Nf5 {[%clk
0:02:39.1]} 20. h4 {[%clk 0:02:27]} 20... Nd4 {[%clk 0:02:37.4]} 21. Qg4 {[%clk
0:02:24.8]} 21... Bc8 {[%clk 0:02:36.2]} 22. Qg1 {[%clk 0:02:13.3]} 22... Bf5
{[%clk 0:02:05]} 23. Bd3 {[%clk 0:02:07.3]} 23... Qd7 {[%clk 0:02:02.3]} 24.
Bxf5 {[%clk 0:02:04.5]} 24... Qxf5 {[%clk 0:02:02.4]} 25. h5 {[%clk 0:02:04.2]}
25... f3 {[%clk 0:01:48.2]} 26. Rh4 {[%clk 0:01:58.3]} 26... Ne2 {[%clk
0:01:24.9]} 27. Qh1 {[%clk 0:01:48.6]} 27... Nxc3 {[%clk 0:01:19.5]} 28. bxc3
{[%clk 0:01:47.8]} 28... Qxc2 {[%clk 0:01:18.9]} 29. Re1 {[%clk 0:01:46.7]}
29... Bxc3 {[%clk 0:01:08.4]} 30. hxg6 {[%clk 0:01:33.2]} 30... hxg6 {[%clk
0:01:00.4]} 31. Qh3 {[%clk 0:01:08.3]} 31... Rae8 {[%clk 0:00:54]} 32. Be3
{[%clk 0:00:48.6]} 32... Re7 {[%clk 0:00:32.6]} 33. Rh6 {[%clk 0:00:36.4]} 33...
Bxe1 {[%clk 0:00:22.8]} 34. Rh8+ {[%clk 0:00:35.8]} 34... Kf7 {[%clk 0:00:22.4]}
35. Rh7+ {[%clk 0:00:35.1]} 35... Kg8 {[%clk 0:00:17.5]} 36. Rxe7 {[%clk
0:00:34.3]} 36... Qe2+ {[%clk 0:00:15.3]} 37. Kg1 {[%clk 0:00:31.7]} 37... Bxf2+
{[%clk 0:00:15.5]} 38. Bxf2 {[%clk 0:00:25.7]} 38... Qxe7 {[%clk 0:00:15.2]} 39.
Kh2 {[%clk 0:00:25.3]} 39... Qe5+ {[%clk 0:00:15.2]} 40. Kg1 {[%clk 0:00:24]}
40... Qxg5+ {[%clk 0:00:15.1]} 41. Kf1 {[%clk 0:00:24.1]} 41... Qg2+ {[%clk
0:00:15.1]} 42. Qxg2 {[%clk 0:00:23.3]} 42... fxg2+ {[%clk 0:00:16]} 43. Kxg2
{[%clk 0:00:23]} 43... Rxf2+ {[%clk 0:00:16.6]} 44. Kxf2 {[%clk 0:00:22.1]}
44... Kf7 {[%clk 0:00:17.3]} 0-1

[Event "*** SCC Grand Prix: Titled Tuesday Blitz"]
[Site "Chess.com"]
[Date "2020.06.09"]
[Round "1"]
[White "FrenchMonster2002"]
[Black "Gajuchess"]
[Result "0-1"]
[WhiteElo "2417"]
[BlackElo "2784"]
[TimeControl "180+1"]
[EndTime "9:07:23 PDT"]
[Termination "Gajuchess won on time"]

1. e4 {[%clk 0:03:00.9]} 1... c5 {[%clk 0:02:26.4]} 2. Nc3 {[%clk 0:03:00.4]}
2... e6 {[%clk 0:02:26.1]} 3. Nf3 {[%clk 0:03:00]} 3... a6 {[%clk 0:02:25.7]} 4.
g3 {[%clk 0:03:00.3]} 4... Nc6 {[%clk 0:02:25.5]} 5. Bg2 {[%clk 0:02:59.2]} 5...
Qb6 {[%clk 0:02:25.6]} 6. O-O {[%clk 0:02:57.1]} 6... d6 {[%clk 0:02:26.2]} 7.
b3 {[%clk 0:02:50.4]} 7... Nf6 {[%clk 0:02:25.6]} 8. Bb2 {[%clk 0:02:50.6]} 8...
Be7 {[%clk 0:02:26.1]} 9. Re1 {[%clk 0:02:48.6]} 9... O-O {[%clk 0:02:25.7]} 10.
e5 {[%clk 0:02:36.3]} 10... dxe5 {[%clk 0:02:23]} 11. Nxe5 {[%clk 0:02:37.2]}
11... Nd4 {[%clk 0:02:21]} 12. Ne2 {[%clk 0:02:20.1]} 12... Rd8 {[%clk
0:02:15.6]} 13. Nf4 {[%clk 0:02:10.3]} 13... Qc7 {[%clk 0:02:06.1]} 14. Nh5
{[%clk 0:01:53.3]} 14... Nxh5 {[%clk 0:02:05.7]} 15. Qxh5 {[%clk 0:01:54.2]}
15... g6 {[%clk 0:02:01.6]} 16. Qh6 {[%clk 0:01:38.7]} 16... Bf6 {[%clk
0:01:48.3]} 17. Qf4 {[%clk 0:01:16.8]} 17... Bg7 {[%clk 0:01:43.1]} 18. Rac1
{[%clk 0:01:02.9]} 18... f6 {[%clk 0:01:41.8]} 19. Nd3 {[%clk 0:01:00.9]} 19...
e5 {[%clk 0:01:40.3]} 20. Qe3 {[%clk 0:00:56.9]} 20... Bf5 {[%clk 0:01:39.7]}
21. c3 {[%clk 0:00:47.2]} 21... Nxb3 {[%clk 0:01:32.3]} 22. axb3 {[%clk
0:00:38.4]} 22... Rxd3 {[%clk 0:01:32.4]} 23. Qe2 {[%clk 0:00:37.1]} 23... Rad8
{[%clk 0:01:33]} 24. Red1 {[%clk 0:00:20.8]} 24... b5 {[%clk 0:01:28]} 25. c4
{[%clk 0:00:18.9]} 25... b4 {[%clk 0:01:26.6]} 26. g4 {[%clk 0:00:15.2]} 26...
Be6 {[%clk 0:01:21.2]} 27. Bd5 {[%clk 0:00:10.9]} 27... R3xd5 {[%clk 0:01:19.9]}
28. cxd5 {[%clk 0:00:11]} 28... Bxd5 {[%clk 0:01:17.2]} 29. f3 {[%clk
0:00:11.5]} 29... Qc6 {[%clk 0:01:12.4]} 30. Kf2 {[%clk 0:00:11.4]} 30... Bxb3
{[%clk 0:01:11.5]} 31. Re1 {[%clk 0:00:10]} 31... a5 {[%clk 0:01:07.1]} 32. g5
{[%clk 0:00:08.1]} 32... a4 {[%clk 0:00:58.9]} 33. gxf6 {[%clk 0:00:08.5]} 33...
Qxf6 {[%clk 0:00:59.1]} 34. Bxe5 {[%clk 0:00:08.8]} 34... Qh4+ {[%clk
0:00:39.3]} 35. Bg3 {[%clk 0:00:07.2]} 35... Qd4+ {[%clk 0:00:39.4]} 36. Kg2
{[%clk 0:00:03.1]} 36... a3 {[%clk 0:00:39.9]} 37. Qe7 {[%clk 0:00:01.9]} 37...
a2 {[%clk 0:00:37.6]} 38. Bh4 {[%clk 0:00:02]} 38... Rf8 {[%clk 0:00:34.8]} 39.
Qc7 {[%clk 0:00:01.6]} 39... Bd5 {[%clk 0:00:32.5]} 40. Rf1 {[%clk 0:00:01.5]}
40... Qxd2+ {[%clk 0:00:31.2]} 41. Rf2 {[%clk 0:00:01.8]} 41... Qxc1 {[%clk
0:00:30.4]} 42. Be7 {[%clk 0:00:02.2]} 42... a1=Q {[%clk 0:00:29.3]} 43. Bxf8
{[%clk 0:00:02.3]} 43... Bxf8 {[%clk 0:00:26.3]} 0-1

[Event "*** SCC Grand Prix: Titled Tuesday Blitz"]
[Site "Chess.com"]
[Date "2020.06.09"]
[Round "1"]
[White "BocharovD"]
[Black "juniortay"]
[Result "0-1"]
[WhiteElo "2732"]
[BlackElo "2416"]
[TimeControl "180+1"]
[EndTime "9:07:23 PDT"]
[Termination "juniortay won on time"]

1. c4 {[%clk 0:03:00.2]} 1... e6 {[%clk 0:02:59.4]} 2. Nf3 {[%clk 0:02:59.7]}
2... d5 {[%clk 0:02:58.8]} 3. e3 {[%clk 0:03:00.2]} 3... c5 {[%clk 0:02:57.8]}
4. b3 {[%clk 0:02:55.7]} 4... Nc6 {[%clk 0:02:57.8]} 5. cxd5 {[%clk 0:02:55.5]}
5... exd5 {[%clk 0:02:57.4]} 6. Bb2 {[%clk 0:02:55.5]} 6... Nf6 {[%clk
0:02:57.5]} 7. Be2 {[%clk 0:02:54.9]} 7... Be7 {[%clk 0:02:56]} 8. O-O {[%clk
0:02:54.3]} 8... O-O {[%clk 0:02:56.1]} 9. d4 {[%clk 0:02:54.3]} 9... cxd4
{[%clk 0:02:54.8]} 10. Nxd4 {[%clk 0:02:54.4]} 10... Bd6 {[%clk 0:02:54.7]} 11.
Nc3 {[%clk 0:02:45.9]} 11... Re8 {[%clk 0:02:53.9]} 12. Ncb5 {[%clk 0:02:37.1]}
12... Bb8 {[%clk 0:02:53.1]} 13. Rc1 {[%clk 0:02:33.5]} 13... Bd7 {[%clk
0:02:51.8]} 14. g3 {[%clk 0:02:28.6]} 14... a6 {[%clk 0:02:48.9]} 15. Nxc6
{[%clk 0:02:28.1]} 15... bxc6 {[%clk 0:02:46.4]} 16. Nd4 {[%clk 0:02:27.4]}
16... Qb6 {[%clk 0:02:42.3]} 17. Qc2 {[%clk 0:02:27]} 17... Rc8 {[%clk
0:02:36.3]} 18. Nf5 {[%clk 0:02:26.1]} 18... Qd8 {[%clk 0:02:33.2]} 19. Rfd1
{[%clk 0:02:19.9]} 19... a5 {[%clk 0:01:58.5]} 20. Bf3 {[%clk 0:02:12.8]} 20...
Ra6 {[%clk 0:01:42.1]} 21. Bd4 {[%clk 0:02:07.9]} 21... c5 {[%clk 0:01:29]} 22.
Ba1 {[%clk 0:01:47.1]} 22... Be6 {[%clk 0:01:13.5]} 23. e4 {[%clk 0:01:36]}
23... d4 {[%clk 0:01:09.3]} 24. Qe2 {[%clk 0:01:19.4]} 24... Rb6 {[%clk
0:00:57.3]} 25. Ne3 {[%clk 0:01:03.5]} 25... Rd6 {[%clk 0:00:45.9]} 26. e5
{[%clk 0:01:00.6]} 26... Rd7 {[%clk 0:00:38.5]} 27. exf6 {[%clk 0:00:59.7]}
27... dxe3 {[%clk 0:00:38.5]} 28. fxg7 {[%clk 0:00:51.7]} 28... exf2+ {[%clk
0:00:37.5]} 29. Qxf2 {[%clk 0:00:52]} 29... Ba7 {[%clk 0:00:28.7]} 30. Rxd7
{[%clk 0:00:44.3]} 30... Qxd7 {[%clk 0:00:27.9]} 31. Kh1 {[%clk 0:00:34.3]}
31... c4 {[%clk 0:00:24.6]} 32. Qe1 {[%clk 0:00:23.2]} 32... cxb3 {[%clk
0:00:23.5]} 33. Rxc8+ {[%clk 0:00:16.7]} 33... Qxc8 {[%clk 0:00:24.4]} 34. axb3
{[%clk 0:00:16.9]} 34... Qc2 {[%clk 0:00:23]} 35. Be4 {[%clk 0:00:04.9]} 35...
Qxb3 {[%clk 0:00:20.9]} 36. Qc1 {[%clk 0:00:01.4]} 36... Qc4 {[%clk 0:00:19.7]}
0-1

[Event "*** SCC Grand Prix: Titled Tuesday Blitz"]
[Site "Chess.com"]
[Date "2020.06.09"]
[Round "1"]
[White "Y0ung_Capablanca"]
[Black "Olga_Girya"]
[Result "1-0"]
[WhiteElo "2753"]
[BlackElo "2403"]
[TimeControl "180+1"]
[EndTime "9:07:25 PDT"]
[Termination "Y0ung_Capablanca won by resignation"]

1. d4 {[%clk 0:03:00.8]} 1... d5 {[%clk 0:02:59]} 2. c4 {[%clk 0:03:01.1]} 2...
c6 {[%clk 0:02:59.3]} 3. cxd5 {[%clk 0:03:01.1]} 3... cxd5 {[%clk 0:02:58.5]} 4.
Bf4 {[%clk 0:03:01.6]} 4... Nf6 {[%clk 0:02:56.8]} 5. e3 {[%clk 0:03:02.1]} 5...
Bf5 {[%clk 0:02:56.6]} 6. Nc3 {[%clk 0:03:02.2]} 6... Nc6 {[%clk 0:02:56.7]} 7.
Qb3 {[%clk 0:03:02.5]} 7... Na5 {[%clk 0:02:54.6]} 8. Qa4+ {[%clk 0:03:02.2]}
8... Bd7 {[%clk 0:02:55]} 9. Qc2 {[%clk 0:03:02.8]} 9... e6 {[%clk 0:02:53.5]}
10. Bd3 {[%clk 0:03:03.1]} 10... Be7 {[%clk 0:02:49]} 11. Nf3 {[%clk 0:03:00.1]}
11... Nc6 {[%clk 0:02:48.9]} 12. Qe2 {[%clk 0:02:58.6]} 12... Nh5 {[%clk
0:02:43.2]} 13. Bg3 {[%clk 0:02:57.6]} 13... O-O {[%clk 0:02:34]} 14. Ne5 {[%clk
0:02:31.3]} 14... g6 {[%clk 0:02:33]} 15. Nxc6 {[%clk 0:02:19.2]} 15... Bxc6
{[%clk 0:02:32.6]} 16. Be5 {[%clk 0:02:08.9]} 16... f6 {[%clk 0:02:24.7]} 17.
Bg3 {[%clk 0:01:57.8]} 17... Rc8 {[%clk 0:02:16.4]} 18. O-O-O {[%clk 0:01:57.6]}
18... Bb4 {[%clk 0:02:07.2]} 19. Kb1 {[%clk 0:01:58]} 19... Bxc3 {[%clk
0:02:03.8]} 20. bxc3 {[%clk 0:01:58.9]} 20... Qa5 {[%clk 0:01:53.6]} 21. Bd6
{[%clk 0:01:53.6]} 21... Rfd8 {[%clk 0:01:25.3]} 22. Bb4 {[%clk 0:01:52.6]}
22... Qb6 {[%clk 0:01:25.1]} 23. Ka1 {[%clk 0:01:47.5]} 23... a5 {[%clk
0:01:08.6]} 24. Bc5 {[%clk 0:01:45.6]} 24... Qc7 {[%clk 0:01:08.6]} 25. Rb1
{[%clk 0:01:45]} 25... Qd7 {[%clk 0:00:36.1]} 26. Bb6 {[%clk 0:01:39.3]} 26...
Re8 {[%clk 0:00:36.2]} 27. Bxa5 {[%clk 0:01:37.4]} 27... e5 {[%clk 0:00:36.4]}
28. Bb6 {[%clk 0:01:21.7]} 28... exd4 {[%clk 0:00:35.3]} 29. cxd4 {[%clk
0:01:21.2]} 29... Nf4 {[%clk 0:00:34.8]} 30. Qd2 {[%clk 0:01:16.8]} 30... Nxd3
{[%clk 0:00:34.7]} 31. Qxd3 {[%clk 0:01:17.3]} 31... Ba4 {[%clk 0:00:31.5]} 32.
Bc5 {[%clk 0:01:10.8]} 32... b5 {[%clk 0:00:19.6]} 33. h4 {[%clk 0:01:04.8]}
33... Qe6 {[%clk 0:00:18.3]} 34. h5 {[%clk 0:01:03.5]} 34... Qe4 {[%clk
0:00:17.5]} 35. Qxe4 {[%clk 0:01:02.9]} 35... Rxe4 {[%clk 0:00:17.5]} 36. hxg6
{[%clk 0:01:03.4]} 36... hxg6 {[%clk 0:00:18]} 37. Rh6 {[%clk 0:01:02]} 37...
Kf7 {[%clk 0:00:17.2]} 38. Rh7+ {[%clk 0:00:55.5]} 38... Ke6 {[%clk 0:00:16.8]}
39. f3 {[%clk 0:00:55.1]} 39... Rxc5 {[%clk 0:00:12.6]} 40. dxc5 {[%clk
0:00:46.4]} 40... Rxe3 {[%clk 0:00:12.9]} 41. Rc1 {[%clk 0:00:43.7]} 41... b4
{[%clk 0:00:11.8]} 42. c6 {[%clk 0:00:43.7]} 42... Rc3 {[%clk 0:00:07.8]} 43.
Rxc3 {[%clk 0:00:41]} 43... bxc3 {[%clk 0:00:08.3]} 44. c7 {[%clk 0:00:41.9]}
44... Bd7 {[%clk 0:00:08.7]} 45. Rh8 {[%clk 0:00:31.6]} 45... d4 {[%clk
0:00:09.1]} 46. c8=Q {[%clk 0:00:30]} 46... Bxc8 {[%clk 0:00:09.1]} 47. Rxc8
{[%clk 0:00:30.9]} 47... Kd5 {[%clk 0:00:09.1]} 48. Kb1 {[%clk 0:00:31.3]} 1-0